[Event "*** Titled Tuesday Blitz"]
[Site "Chess.com"]
[Date "2020.05.12"]
[Round "2"]
[White "coalescenet"]
[Black "gahryman"]
[Result "0-1"]
[WhiteElo "2339"]
[BlackElo "2638"]
[TimeControl "180+1"]
[EndTime "10:16:26 PDT"]
[Termination "gahryman won by checkmate"]

1. d4 {[%clk 0:03:00.9]} 1... Nf6 {[%clk 0:02:59.4]} 2. c4 {[%clk 0:03:00.4]}
2... g6 {[%clk 0:02:58.8]} 3. Nc3 {[%clk 0:02:59.4]} 3... Bg7 {[%clk 0:02:59.7]}
4. Nf3 {[%clk 0:02:58]} 4... d6 {[%clk 0:03:00.6]} 5. Bg5 {[%clk 0:02:57.8]}
5... O-O {[%clk 0:02:58.8]} 6. e3 {[%clk 0:02:58.1]} 6... c5 {[%clk 0:02:58.5]}
7. Be2 {[%clk 0:02:58.2]} 7... Nc6 {[%clk 0:02:58.7]} 8. d5 {[%clk 0:02:57.5]}
8... Na5 {[%clk 0:02:58.1]} 9. O-O {[%clk 0:02:57.2]} 9... a6 {[%clk 0:02:56.6]}
10. a3 {[%clk 0:02:53.7]} 10... b5 {[%clk 0:02:51.4]} 11. cxb5 {[%clk
0:02:48.4]} 11... axb5 {[%clk 0:02:52.3]} 12. b4 {[%clk 0:02:44.9]} 12... Nb7
{[%clk 0:02:37.6]} 13. Bxb5 {[%clk 0:02:24.2]} 13... cxb4 {[%clk 0:02:35.3]} 14.
axb4 {[%clk 0:02:14.3]} 14... Rxa1 {[%clk 0:02:34.7]} 15. Qxa1 {[%clk
0:02:13.2]} 15... Ne4 {[%clk 0:02:35.6]} 16. Nd4 {[%clk 0:01:55]} 16... Nxg5
{[%clk 0:02:32.1]} 17. f4 {[%clk 0:01:47.6]} 17... Bxd4 {[%clk 0:01:57.1]} 18.
exd4 {[%clk 0:01:40.7]} 18... Qb6 {[%clk 0:01:58]} 19. fxg5 {[%clk 0:01:26]}
19... Qxd4+ {[%clk 0:01:57.6]} 20. Kh1 {[%clk 0:01:26.5]} 20... Qxb4 {[%clk
0:01:58.5]} 21. Rb1 {[%clk 0:01:15.6]} 21... Qf4 {[%clk 0:01:53.7]} 22. Ba6
{[%clk 0:01:09.6]} 22... Nc5 {[%clk 0:01:51.4]} 23. Ne2 {[%clk 0:01:04.7]} 23...
Qxg5 {[%clk 0:01:49.1]} 24. Bxc8 {[%clk 0:01:02.7]} 24... Rxc8 {[%clk 0:01:50]}
25. Ng3 {[%clk 0:00:59.8]} 25... Nd3 {[%clk 0:01:46.8]} 26. Qa3 {[%clk
0:00:48.7]} 26... Qe3 {[%clk 0:01:42.5]} 27. Qa2 {[%clk 0:00:28]} 27... Rc1+
{[%clk 0:01:26.3]} 28. Nf1 {[%clk 0:00:25.5]} 28... Nf2+ {[%clk 0:01:24.2]} 29.
Kg1 {[%clk 0:00:25.1]} 29... Nh3+ {[%clk 0:01:23.7]} 30. Kh1 {[%clk 0:00:26]}
30... Qg1# {[%clk 0:01:23.7]} 0-1

[Event "*** Titled Tuesday Blitz"]
[Site "Chess.com"]
[Date "2020.05.12"]
[Round "2"]
[White "calin_dragomirescu"]
[Black "maciek_92"]
[Result "0-1"]
[WhiteElo "2320"]
[BlackElo "2637"]
[TimeControl "180+1"]
[EndTime "10:16:28 PDT"]
[Termination "maciek_92 won by resignation"]

1. Nf3 {[%clk 0:03:00.9]} 1... Nf6 {[%clk 0:02:59.6]} 2. c4 {[%clk 0:03:00.9]}
2... b6 {[%clk 0:02:58.7]} 3. g3 {[%clk 0:03:00.3]} 3... Bb7 {[%clk 0:02:57.5]}
4. Bg2 {[%clk 0:03:00.8]} 4... e6 {[%clk 0:02:58.1]} 5. O-O {[%clk 0:03:01]}
5... Be7 {[%clk 0:02:58.7]} 6. Nc3 {[%clk 0:03:01.4]} 6... O-O {[%clk
0:02:58.5]} 7. Re1 {[%clk 0:03:00.8]} 7... d5 {[%clk 0:02:54.3]} 8. cxd5 {[%clk
0:03:00.6]} 8... exd5 {[%clk 0:02:55.2]} 9. d4 {[%clk 0:03:00.9]} 9... Nbd7
{[%clk 0:02:53.4]} 10. Bf4 {[%clk 0:03:00.3]} 10... a6 {[%clk 0:02:53]} 11. Rc1
{[%clk 0:02:59.2]} 11... Re8 {[%clk 0:02:52.9]} 12. Ne5 {[%clk 0:02:58.9]} 12...
Nf8 {[%clk 0:02:48.1]} 13. h4 {[%clk 0:02:56.2]} 13... Ne6 {[%clk 0:02:42.7]}
14. a3 {[%clk 0:02:49.1]} 14... Nxf4 {[%clk 0:02:32.4]} 15. gxf4 {[%clk
0:02:48.7]} 15... g6 {[%clk 0:02:10]} 16. e3 {[%clk 0:02:42.7]} 16... Qd6 {[%clk
0:02:01.8]} 17. Bf3 {[%clk 0:02:37]} 17... Ne4 {[%clk 0:01:52.4]} 18. Nxe4
{[%clk 0:02:26.3]} 18... dxe4 {[%clk 0:01:50.7]} 19. Bg2 {[%clk 0:02:26.4]}
19... f6 {[%clk 0:01:25.1]} 20. Nc4 {[%clk 0:02:20.3]} 20... Qe6 {[%clk
0:01:22.8]} 21. Nd2 {[%clk 0:02:12.3]} 21... Bd6 {[%clk 0:01:08.8]} 22. h5
{[%clk 0:02:11.2]} 22... g5 {[%clk 0:01:06.2]} 23. Qc2 {[%clk 0:02:06.4]} 23...
b5 {[%clk 0:01:02.8]} 24. Nb3 {[%clk 0:01:58.2]} 24... Bd5 {[%clk 0:00:58.9]}
25. Nc5 {[%clk 0:01:55.3]} 25... Qg4 {[%clk 0:00:52.3]} 26. Kf1 {[%clk
0:01:42.9]} 26... gxf4 {[%clk 0:00:49.4]} 27. Nxe4 {[%clk 0:01:37]} 27... Bxe4
{[%clk 0:00:45.5]} 28. Bxe4 {[%clk 0:01:36.6]} 28... f3 {[%clk 0:00:46]} 29.
Bxh7+ {[%clk 0:01:26.4]} 29... Kh8 {[%clk 0:00:44.1]} 30. Red1 {[%clk
0:01:23.7]} 30... Qg2+ {[%clk 0:00:39.8]} 31. Ke1 {[%clk 0:01:23.9]} 31... Rxe3+
{[%clk 0:00:40.1]} 32. fxe3 {[%clk 0:01:18.8]} 32... Bg3+ {[%clk 0:00:37.1]} 0-1

[Event "*** Titled Tuesday Blitz"]
[Site "Chess.com"]
[Date "2020.05.12"]
[Round "2"]
[White "Hippotaner"]
[Black "BakaPG"]
[Result "0-1"]
[WhiteElo "2336"]
[BlackElo "2631"]
[TimeControl "180+1"]
[EndTime "10:16:29 PDT"]
[Termination "BakaPG won by checkmate"]

1. e4 {[%clk 0:03:00.9]} 1... e6 {[%clk 0:02:58.7]} 2. d3 {[%clk 0:03:00.8]}
2... d5 {[%clk 0:02:59.3]} 3. Nd2 {[%clk 0:02:59.9]} 3... Nf6 {[%clk 0:02:59.1]}
4. Ngf3 {[%clk 0:02:59.8]} 4... Bc5 {[%clk 0:02:57.7]} 5. e5 {[%clk 0:02:56.4]}
5... Nfd7 {[%clk 0:02:56.1]} 6. d4 {[%clk 0:02:56.8]} 6... Be7 {[%clk
0:02:56.6]} 7. c3 {[%clk 0:02:57.1]} 7... c5 {[%clk 0:02:57.2]} 8. Bd3 {[%clk
0:02:54.5]} 8... Nc6 {[%clk 0:02:57.6]} 9. O-O {[%clk 0:02:52.9]} 9... g5 {[%clk
0:02:57.5]} 10. Qe2 {[%clk 0:02:53]} 10... g4 {[%clk 0:02:52.9]} 11. Ne1 {[%clk
0:02:52]} 11... h5 {[%clk 0:02:52.2]} 12. dxc5 {[%clk 0:02:50.6]} 12... Bxc5
{[%clk 0:02:43.5]} 13. b4 {[%clk 0:02:48.9]} 13... Bb6 {[%clk 0:02:42.6]} 14.
Bb5 {[%clk 0:02:47.6]} 14... a6 {[%clk 0:02:38.5]} 15. Bxc6 {[%clk 0:02:47.3]}
15... bxc6 {[%clk 0:02:38.7]} 16. Nd3 {[%clk 0:02:46.5]} 16... a5 {[%clk
0:02:36.4]} 17. bxa5 {[%clk 0:02:37.3]} 17... Rxa5 {[%clk 0:02:27.2]} 18. Nb3
{[%clk 0:02:34.9]} 18... Ra4 {[%clk 0:02:24]} 19. Re1 {[%clk 0:02:27.1]} 19...
Ba6 {[%clk 0:02:19]} 20. Qd1 {[%clk 0:02:26.8]} 20... Re4 {[%clk 0:02:04.6]} 21.
Rxe4 {[%clk 0:02:23.1]} 21... dxe4 {[%clk 0:02:04.5]} 22. Nb4 {[%clk 0:02:24]}
22... Bb7 {[%clk 0:02:01.1]} 23. Bf4 {[%clk 0:02:21.3]} 23... c5 {[%clk
0:01:50.1]} 24. Nc2 {[%clk 0:02:20.4]} 24... c4 {[%clk 0:01:38.1]} 25. Nbd4
{[%clk 0:02:19.2]} 25... Nc5 {[%clk 0:01:32.2]} 26. Ne3 {[%clk 0:02:10.5]} 26...
Nd3 {[%clk 0:01:29.7]} 27. Qa4+ {[%clk 0:02:09.3]} 27... Kf8 {[%clk 0:01:25.8]}
28. g3 {[%clk 0:02:01.7]} 28... Bxd4 {[%clk 0:01:25.3]} 29. cxd4 {[%clk
0:01:56.1]} 29... Qxd4 {[%clk 0:01:24.9]} 30. Rb1 {[%clk 0:01:53.8]} 30... Bd5
{[%clk 0:01:09]} 31. Rb8+ {[%clk 0:01:51.4]} 31... Kg7 {[%clk 0:01:08.8]} 32.
Rxh8 {[%clk 0:01:49.1]} 32... Qa1+ {[%clk 0:01:05.1]} 33. Nf1 {[%clk 0:01:27.7]}
33... Nxf4 {[%clk 0:00:52.2]} 34. Qe8 {[%clk 0:01:18.9]} 34... Nh3+ {[%clk
0:00:50.3]} 35. Kg2 {[%clk 0:01:18.5]} 35... e3+ {[%clk 0:00:50.4]} 36. f3
{[%clk 0:01:12.3]} 36... Bxf3# {[%clk 0:00:49.9]} 0-1

[Event "*** Titled Tuesday Blitz"]
[Site "Chess.com"]
[Date "2020.05.12"]
[Round "2"]
[White "isla88"]
[Black "SerGo055"]
[Result "0-1"]
[WhiteElo "2293"]
[BlackElo "2555"]
[TimeControl "180+1"]
[EndTime "10:16:29 PDT"]
[Termination "SerGo055 won by resignation"]

1. d4 {[%clk 0:03:00.9]} 1... Nf6 {[%clk 0:02:55.2]} 2. Nc3 {[%clk 0:02:58.8]}
2... d5 {[%clk 0:02:48.9]} 3. Bf4 {[%clk 0:02:56.3]} 3... Bf5 {[%clk 0:02:48.1]}
4. e3 {[%clk 0:02:54.6]} 4... e6 {[%clk 0:02:48.4]} 5. Nf3 {[%clk 0:02:54.2]}
5... Bd6 {[%clk 0:02:48.2]} 6. Ne5 {[%clk 0:02:54]} 6... O-O {[%clk 0:02:47.8]}
7. g4 {[%clk 0:02:53.3]} 7... Bg6 {[%clk 0:02:42.4]} 8. h4 {[%clk 0:02:50.6]}
8... h5 {[%clk 0:02:22.8]} 9. Nxg6 {[%clk 0:02:36.8]} 9... fxg6 {[%clk
0:02:20.7]} 10. Bxd6 {[%clk 0:02:30.6]} 10... Qxd6 {[%clk 0:02:08.3]} 11. Qd3
{[%clk 0:02:11.1]} 11... Nxg4 {[%clk 0:01:43.2]} 12. Qxg6 {[%clk 0:02:08.6]}
12... Nd7 {[%clk 0:01:43.6]} 13. Bd3 {[%clk 0:01:49.6]} 13... Ndf6 {[%clk
0:01:32.9]} 14. Rg1 {[%clk 0:01:43.6]} 14... Qh2 {[%clk 0:01:31.6]} 15. O-O-O
{[%clk 0:01:34.9]} 15... Qxf2 {[%clk 0:01:30.5]} 16. e4 {[%clk 0:01:18.8]} 16...
Qe3+ {[%clk 0:01:05.4]} 17. Kb1 {[%clk 0:01:17.5]} 17... Qh6 {[%clk 0:01:06.1]}
18. exd5 {[%clk 0:01:02.8]} 18... Qxg6 {[%clk 0:01:05.7]} 19. Bxg6 {[%clk
0:01:03.6]} 19... exd5 {[%clk 0:01:06]} 20. Bxh5 {[%clk 0:00:52]} 20... Nf2
{[%clk 0:01:05.5]} 21. Rde1 {[%clk 0:00:45.9]} 21... Nxh5 {[%clk 0:01:04.9]} 22.
Re7 {[%clk 0:00:45.5]} 22... c6 {[%clk 0:00:56.5]} 23. Rg5 {[%clk 0:00:44.4]}
23... Nh3 {[%clk 0:00:53.2]} 0-1

[Event "*** Titled Tuesday Blitz"]
[Site "Chess.com"]
[Date "2020.05.12"]
[Round "2"]
[White "olomi007"]
[Black "petincash"]
[Result "1-0"]
[WhiteElo "2654"]
[BlackElo "2396"]
[TimeControl "180+1"]
[EndTime "10:16:34 PDT"]
[Termination "olomi007 won on time"]

1. e4 {[%clk 0:03:00.9]} 1... c5 {[%clk 0:02:59.6]} 2. Nf3 {[%clk 0:03:00.5]}
2... g6 {[%clk 0:03:00.1]} 3. d4 {[%clk 0:03:00.6]} 3... cxd4 {[%clk 0:03:01]}
4. Nxd4 {[%clk 0:03:01.1]} 4... Bg7 {[%clk 0:03:00.9]} 5. Nc3 {[%clk 0:03:01.7]}
5... Nc6 {[%clk 0:03:01.2]} 6. Be3 {[%clk 0:03:01.4]} 6... Nf6 {[%clk
0:03:01.3]} 7. Bc4 {[%clk 0:03:01.8]} 7... O-O {[%clk 0:03:01.1]} 8. Bb3 {[%clk
0:03:02]} 8... d6 {[%clk 0:03:01.4]} 9. f3 {[%clk 0:03:01]} 9... Bd7 {[%clk
0:03:01.2]} 10. h4 {[%clk 0:03:00.9]} 10... h5 {[%clk 0:02:56.3]} 11. Qd2 {[%clk
0:02:56.3]} 11... Nxd4 {[%clk 0:02:56.3]} 12. Bxd4 {[%clk 0:02:56.1]} 12... b5
{[%clk 0:02:56.9]} 13. Nd5 {[%clk 0:02:41.4]} 13... e6 {[%clk 0:02:22]} 14.
Nxf6+ {[%clk 0:02:37.4]} 14... Bxf6 {[%clk 0:02:22.9]} 15. O-O-O {[%clk
0:02:37.7]} 15... a5 {[%clk 0:02:01.2]} 16. a3 {[%clk 0:02:34.9]} 16... b4
{[%clk 0:01:32.7]} 17. a4 {[%clk 0:02:34.5]} 17... Rc8 {[%clk 0:01:23.4]} 18. g4
{[%clk 0:02:25.9]} 18... hxg4 {[%clk 0:01:06.4]} 19. h5 {[%clk 0:02:24.2]} 19...
Bxd4 {[%clk 0:00:18.7]} 20. Qxd4 {[%clk 0:02:21.3]} 20... Qg5+ {[%clk
0:00:18.7]} 21. Kb1 {[%clk 0:02:21.5]} 21... e5 {[%clk 0:00:12.8]} 22. Qxd6
{[%clk 0:02:19.4]} 22... Be6 {[%clk 0:00:04.1]} 23. Bxe6 {[%clk 0:02:18.6]}
23... Rfd8 {[%clk 0:00:02.7]} 24. Bxf7+ {[%clk 0:02:12.7]} 24... Kxf7 {[%clk
0:00:03.6]} 25. hxg6+ {[%clk 0:02:05.6]} 25... Qxg6 {[%clk 0:00:03.3]} 26. Qxe5
{[%clk 0:02:05.4]} 26... Rxd1+ {[%clk 0:00:02.4]} 27. Rxd1 {[%clk 0:02:04.7]}
27... b3 {[%clk 0:00:01.6]} 28. cxb3 {[%clk 0:01:55.7]} 28... gxf3 {[%clk
0:00:01.4]} 29. Qf4+ {[%clk 0:01:48.8]} 29... Kg8 {[%clk 0:00:01.5]} 30. Qxf3
{[%clk 0:01:47.6]} 30... Rf8 {[%clk 0:00:01.5]} 31. Qe3 {[%clk 0:01:46.6]} 31...
Re8 {[%clk 0:00:01.4]} 32. Rg1 {[%clk 0:01:45.6]} 1-0

[Event "*** Titled Tuesday Blitz"]
[Site "Chess.com"]
[Date "2020.05.12"]
[Round "2"]
[White "MiroVlasenko"]
[Black "Philos_85"]
[Result "1-0"]
[WhiteElo "2609"]
[BlackElo "2245"]
[TimeControl "180+1"]
[EndTime "10:16:37 PDT"]
[Termination "MiroVlasenko won by resignation"]

1. d4 {[%clk 0:03:00.9]} 1... d5 {[%clk 0:02:59]} 2. Bf4 {[%clk 0:03:00.3]} 2...
Nf6 {[%clk 0:02:55.6]} 3. e3 {[%clk 0:02:59.2]} 3... g6 {[%clk 0:02:45.6]} 4.
Nf3 {[%clk 0:02:58.7]} 4... Bg7 {[%clk 0:02:44]} 5. h3 {[%clk 0:02:59.1]} 5...
O-O {[%clk 0:02:41.3]} 6. Nbd2 {[%clk 0:02:58.9]} 6... c6 {[%clk 0:02:38.3]} 7.
Be2 {[%clk 0:02:58.6]} 7... Bf5 {[%clk 0:02:36.9]} 8. O-O {[%clk 0:02:58.1]}
8... Ne4 {[%clk 0:02:36.1]} 9. Nb3 {[%clk 0:02:54.7]} 9... Nd7 {[%clk
0:02:32.8]} 10. c4 {[%clk 0:02:53.3]} 10... dxc4 {[%clk 0:02:06.8]} 11. Bxc4
{[%clk 0:02:50.8]} 11... Re8 {[%clk 0:02:02.3]} 12. g4 {[%clk 0:02:47.6]} 12...
Be6 {[%clk 0:01:54.5]} 13. Bxe6 {[%clk 0:02:46.5]} 13... fxe6 {[%clk 0:01:55.4]}
14. Qc2 {[%clk 0:02:43.1]} 14... Nd6 {[%clk 0:01:47]} 15. Ng5 {[%clk 0:02:38.9]}
15... Nf8 {[%clk 0:01:47.1]} 16. Nc5 {[%clk 0:02:37.8]} 16... Qc8 {[%clk
0:01:47.1]} 17. Qb3 {[%clk 0:02:36.9]} 17... Kh8 {[%clk 0:01:33.7]} 18. Bxd6
{[%clk 0:02:31.6]} 18... exd6 {[%clk 0:01:33.7]} 19. Nf7+ {[%clk 0:02:31.5]}
19... Kg8 {[%clk 0:01:34]} 20. Nxd6 {[%clk 0:02:32.2]} 20... Qc7 {[%clk
0:01:31.5]} 21. Nxe8 {[%clk 0:02:31.6]} 21... Rxe8 {[%clk 0:01:31.7]} 22. Qxb7
{[%clk 0:02:31.5]} 22... Qd6 {[%clk 0:01:31.5]} 23. Qb3 {[%clk 0:02:26.1]} 23...
Kh8 {[%clk 0:01:30.1]} 24. Ne4 {[%clk 0:02:25.1]} 24... Qe7 {[%clk 0:01:27.8]}
25. Ng3 {[%clk 0:02:24]} 25... Qh4 {[%clk 0:01:26.1]} 26. Kg2 {[%clk 0:02:23.7]}
26... e5 {[%clk 0:01:26.1]} 27. dxe5 {[%clk 0:02:19]} 27... Bxe5 {[%clk
0:01:26.3]} 28. Qf7 {[%clk 0:02:18.8]} 28... Rb8 {[%clk 0:01:21.2]} 29. Ne4
{[%clk 0:02:07]} 29... h5 {[%clk 0:01:10.8]} 30. Qf3 {[%clk 0:02:05.9]} 30...
Ne6 {[%clk 0:01:06]} 31. Rac1 {[%clk 0:01:44.6]} 31... Rf8 {[%clk 0:01:02.7]}
32. Qe2 {[%clk 0:01:44.6]} 32... c5 {[%clk 0:00:54.1]} 33. b4 {[%clk 0:01:39.4]}
33... cxb4 {[%clk 0:00:52.2]} 34. Rc6 {[%clk 0:01:38.6]} 34... Re8 {[%clk
0:00:46.8]} 35. Rfc1 {[%clk 0:01:33.8]} 1-0

[Event "*** Titled Tuesday Blitz"]
[Site "Chess.com"]
[Date "2020.05.12"]
[Round "2"]
[White "chegueps"]
[Black "vugarrasulov"]
[Result "0-1"]
[WhiteElo "2517"]
[BlackElo "2786"]
[TimeControl "180+1"]
[EndTime "10:16:38 PDT"]
[Termination "vugarrasulov won by resignation"]

1. e4 {[%clk 0:02:57.5]} 1... c5 {[%clk 0:02:57.8]} 2. Nf3 {[%clk 0:02:57]} 2...
d6 {[%clk 0:02:57.4]} 3. Bb5+ {[%clk 0:02:49.6]} 3... Nd7 {[%clk 0:02:54]} 4. c3
{[%clk 0:02:45.9]} 4... a6 {[%clk 0:02:53.8]} 5. Ba4 {[%clk 0:02:45.7]} 5... Nf6
{[%clk 0:02:54.3]} 6. Qe2 {[%clk 0:02:43.8]} 6... b5 {[%clk 0:02:53.9]} 7. Bc2
{[%clk 0:02:43.7]} 7... Bb7 {[%clk 0:02:54.4]} 8. d4 {[%clk 0:02:42.6]} 8... e5
{[%clk 0:02:54.8]} 9. O-O {[%clk 0:02:39.1]} 9... Be7 {[%clk 0:02:54.9]} 10. a4
{[%clk 0:02:37.5]} 10... O-O {[%clk 0:02:52.2]} 11. Rd1 {[%clk 0:02:18.8]} 11...
Qb6 {[%clk 0:02:46.3]} 12. Na3 {[%clk 0:02:12.9]} 12... Rfe8 {[%clk 0:02:23.7]}
13. Bg5 {[%clk 0:01:51.9]} 13... exd4 {[%clk 0:02:21.4]} 14. cxd4 {[%clk
0:01:48.3]} 14... Bf8 {[%clk 0:02:20.7]} 15. e5 {[%clk 0:01:34.3]} 15... cxd4
{[%clk 0:02:17.9]} 16. Bxf6 {[%clk 0:00:27.7]} 16... Nxf6 {[%clk 0:02:16.3]} 17.
Nxd4 {[%clk 0:00:20.2]} 17... Rxe5 {[%clk 0:02:06.5]} 18. Qd3 {[%clk 0:00:13.8]}
18... Be4 {[%clk 0:01:58.4]} 19. Qd2 {[%clk 0:00:14.1]} 19... Rae8 {[%clk
0:01:53.8]} 20. axb5 {[%clk 0:00:11.9]} 20... axb5 {[%clk 0:01:54.7]} 21. Bxe4
{[%clk 0:00:04.9]} 21... Nxe4 {[%clk 0:01:53.4]} 22. Qf4 {[%clk 0:00:05.3]}
22... Nf6 {[%clk 0:01:44.5]} 23. Nf3 {[%clk 0:00:03.9]} 23... Re2 {[%clk
0:01:40.8]} 24. Rd2 {[%clk 0:00:02.5]} 24... Qxf2+ {[%clk 0:01:38.5]} 0-1

[Event "*** Titled Tuesday Blitz"]
[Site "Chess.com"]
[Date "2020.05.12"]
[Round "2"]
[White "themind1hunter"]
[Black "Zmeeed63"]
[Result "0-1"]
[WhiteElo "2408"]
[BlackElo "2186"]
[TimeControl "180+1"]
[EndTime "10:16:39 PDT"]
[Termination "Zmeeed63 won by resignation"]

1. d4 {[%clk 0:03:00.9]} 1... Nf6 {[%clk 0:02:58.8]} 2. c4 {[%clk 0:02:56.5]}
2... e6 {[%clk 0:02:58.8]} 3. g3 {[%clk 0:02:56.5]} 3... c5 {[%clk 0:02:58.9]}
4. Nf3 {[%clk 0:02:55.9]} 4... cxd4 {[%clk 0:02:58.9]} 5. Nxd4 {[%clk
0:02:56.8]} 5... Nc6 {[%clk 0:02:59.8]} 6. Bg2 {[%clk 0:02:56.1]} 6... d5 {[%clk
0:03:00.5]} 7. cxd5 {[%clk 0:02:54.6]} 7... exd5 {[%clk 0:03:01.4]} 8. O-O
{[%clk 0:02:54.1]} 8... Be7 {[%clk 0:03:01.9]} 9. Nc3 {[%clk 0:02:53.6]} 9...
O-O {[%clk 0:03:02.2]} 10. Bg5 {[%clk 0:02:52.8]} 10... h6 {[%clk 0:03:00.3]}
11. Bf4 {[%clk 0:02:30.1]} 11... Nxd4 {[%clk 0:02:58.4]} 12. Qxd4 {[%clk
0:02:28.8]} 12... Be6 {[%clk 0:02:59.2]} 13. Rad1 {[%clk 0:02:24.1]} 13... Rc8
{[%clk 0:02:53.9]} 14. Qxa7 {[%clk 0:02:20.1]} 14... Bd6 {[%clk 0:02:35.9]} 15.
Bxd6 {[%clk 0:02:11.9]} 15... Qxd6 {[%clk 0:02:36.8]} 16. e4 {[%clk 0:02:12.5]}
16... Qb4 {[%clk 0:02:08.9]} 17. exd5 {[%clk 0:02:10.4]} 17... Bg4 {[%clk
0:02:08.9]} 18. Rd2 {[%clk 0:02:06.2]} 18... Rc5 {[%clk 0:01:12.4]} 19. a3
{[%clk 0:01:56.4]} 19... Qc4 {[%clk 0:01:07]} 20. d6 {[%clk 0:01:43.4]} 20... b5
{[%clk 0:00:52.4]} 21. h3 {[%clk 0:01:27.5]} 21... Bf5 {[%clk 0:00:49.6]} 0-1

[Event "*** Titled Tuesday Blitz"]
[Site "Chess.com"]
[Date "2020.05.12"]
[Round "2"]
[White "Korona_91"]
[Black "I_Hit_18K_on_BS"]
[Result "1-0"]
[WhiteElo "2445"]
[BlackElo "2200"]
[TimeControl "180+1"]
[EndTime "10:16:40 PDT"]
[Termination "Korona_91 won on time"]

1. e4 {[%clk 0:03:00.3]} 1... c5 {[%clk 0:02:59.5]} 2. Nf3 {[%clk 0:03:00.3]}
2... d6 {[%clk 0:02:59.9]} 3. Bb5+ {[%clk 0:02:59.4]} 3... Nd7 {[%clk
0:02:58.8]} 4. a4 {[%clk 0:02:59.4]} 4... a6 {[%clk 0:02:55.5]} 5. Bc4 {[%clk
0:02:59.4]} 5... Ngf6 {[%clk 0:02:42.3]} 6. Nc3 {[%clk 0:02:55.8]} 6... g6
{[%clk 0:02:36.2]} 7. a5 {[%clk 0:02:55.8]} 7... b5 {[%clk 0:02:21]} 8. axb6
{[%clk 0:02:51.9]} 8... Nxb6 {[%clk 0:02:19.9]} 9. Ba2 {[%clk 0:02:52.4]} 9...
Bg7 {[%clk 0:02:16.2]} 10. O-O {[%clk 0:02:51.4]} 10... O-O {[%clk 0:02:10.3]}
11. d3 {[%clk 0:02:51.7]} 11... Bb7 {[%clk 0:01:54.5]} 12. h3 {[%clk 0:02:47.9]}
12... d5 {[%clk 0:01:36.4]} 13. e5 {[%clk 0:02:39.1]} 13... Ne8 {[%clk 0:01:25]}
14. d4 {[%clk 0:02:31.1]} 14... c4 {[%clk 0:01:20]} 15. Qe2 {[%clk 0:02:26.4]}
15... Nc7 {[%clk 0:00:49.3]} 16. b3 {[%clk 0:02:23.7]} 16... Nb5 {[%clk
0:00:47.7]} 17. Bb2 {[%clk 0:02:12.2]} 17... Rc8 {[%clk 0:00:24.5]} 18. Na4
{[%clk 0:01:57.5]} 18... c3 {[%clk 0:00:18.4]} 19. Bc1 {[%clk 0:01:56.6]} 19...
Nxa4 {[%clk 0:00:14.3]} 20. bxa4 {[%clk 0:01:56.5]} 20... Na7 {[%clk 0:00:13.7]}
21. Ba3 {[%clk 0:01:56]} 21... Re8 {[%clk 0:00:13.1]} 22. Rab1 {[%clk
0:01:47.8]} 22... Ba8 {[%clk 0:00:12]} 23. Bc5 {[%clk 0:01:47.6]} 23... Nc6
{[%clk 0:00:09.9]} 24. Qxa6 {[%clk 0:01:46.4]} 24... Qd7 {[%clk 0:00:06.4]} 25.
Rfe1 {[%clk 0:01:42.6]} 25... e6 {[%clk 0:00:01.6]} 26. Qd3 {[%clk 0:01:41.5]}
1-0

[Event "*** Titled Tuesday Blitz"]
[Site "Chess.com"]
[Date "2020.05.12"]
[Round "2"]
[White "S2PAc"]
[Black "Fusikk"]
[Result "1-0"]
[WhiteElo "2773"]
[BlackElo "2513"]
[TimeControl "180+1"]
[EndTime "10:16:43 PDT"]
[Termination "S2PAc won by resignation"]

1. d4 {[%clk 0:03:00.9]} 1... Nf6 {[%clk 0:02:58.5]} 2. g3 {[%clk 0:03:01.2]}
2... e6 {[%clk 0:02:56.8]} 3. Bg2 {[%clk 0:03:01.7]} 3... c5 {[%clk 0:02:56.8]}
4. Nf3 {[%clk 0:03:01.9]} 4... Nc6 {[%clk 0:02:54.8]} 5. O-O {[%clk 0:03:02.4]}
5... Be7 {[%clk 0:02:54.2]} 6. c4 {[%clk 0:03:02.1]} 6... cxd4 {[%clk
0:02:51.9]} 7. Nxd4 {[%clk 0:03:03]} 7... O-O {[%clk 0:02:52]} 8. Nc3 {[%clk
0:03:02.9]} 8... a6 {[%clk 0:02:51.2]} 9. b3 {[%clk 0:03:01.4]} 9... Qc7 {[%clk
0:02:51.5]} 10. Bb2 {[%clk 0:02:56.1]} 10... b6 {[%clk 0:02:50.7]} 11. Rc1
{[%clk 0:02:56]} 11... Bc5 {[%clk 0:02:30.9]} 12. Na4 {[%clk 0:02:47.7]} 12...
Bb7 {[%clk 0:02:25.3]} 13. Nxc5 {[%clk 0:02:34.8]} 13... bxc5 {[%clk 0:02:26.2]}
14. Nxc6 {[%clk 0:02:33.1]} 14... Bxc6 {[%clk 0:02:27.1]} 15. Bxc6 {[%clk
0:02:30.7]} 15... Qxc6 {[%clk 0:02:28]} 16. Bxf6 {[%clk 0:02:30.8]} 16... gxf6
{[%clk 0:02:28.9]} 17. Qd2 {[%clk 0:02:31.6]} 17... Kg7 {[%clk 0:02:18.9]} 18.
Rfd1 {[%clk 0:02:30.2]} 18... Rfd8 {[%clk 0:02:18.8]} 19. Rc3 {[%clk 0:02:24.2]}
19... d5 {[%clk 0:02:11.4]} 20. cxd5 {[%clk 0:02:23.1]} 20... Rxd5 {[%clk
0:02:11.8]} 21. Qc2 {[%clk 0:02:23.1]} 21... Rad8 {[%clk 0:01:57.7]} 22. Rxd5
{[%clk 0:02:11.8]} 22... Rxd5 {[%clk 0:01:58.6]} 23. b4 {[%clk 0:02:04.8]} 23...
Qd7 {[%clk 0:01:21.9]} 24. bxc5 {[%clk 0:02:00.5]} 24... Rd2 {[%clk 0:01:14.5]}
25. Qe4 {[%clk 0:01:59.9]} 25... Rxa2 {[%clk 0:01:13.1]} 26. c6 {[%clk
0:01:17.5]} 26... Qc7 {[%clk 0:01:13.1]} 27. Qg4+ {[%clk 0:01:10.8]} 27... Kf8
{[%clk 0:01:13]} 28. Qd4 {[%clk 0:01:11.2]} 28... Kg7 {[%clk 0:01:05.8]} 29. Qd7
{[%clk 0:01:09]} 29... Ra1+ {[%clk 0:00:57.2]} 30. Kg2 {[%clk 0:01:08.6]} 30...
Qe5 {[%clk 0:00:57.7]} 31. Qd3 {[%clk 0:00:59.6]} 31... Qc7 {[%clk 0:00:52.4]}
32. Rc4 {[%clk 0:00:55.8]} 32... f5 {[%clk 0:00:51.1]} 33. Qc3+ {[%clk
0:00:54.8]} 1-0